[Event "Titled Tuesday Blitz May 2 Late 2023"]
[White "Hoffmann, Asa"]
[Black "Adel, Sara"]
[WhiteFideId "2001470"]
[BlackFideId "10616764"]
[WhiteElo "2117"]
[BlackElo "1982"]
[Result "1-0"]
[Round "05"]
[TimeControl "180+2"]
[Date "2023.05.02"]
[WhiteClock "0:01:10"]
[BlackClock "0:01:34"]

1. d4 {[%clk 0:02:50]}  Nf6 {[%clk 0:02:57]} 2. Bg5 {[%clk 0:02:48]}  g6 {[%clk 0:02:58]} 3. Nc3 {[%clk 0:02:43]}  Bg7 {[%clk 0:02:56]} 4. e4 {[%clk 0:02:41]}  d6 {[%clk 0:02:57]} 5. f3 {[%clk 0:02:41]}  Nbd7 {[%clk 0:02:57]} 6. Qd2 {[%clk 0:02:41]}  c5 {[%clk 0:02:58]} 7. Nge2 {[%clk 0:02:40]}  a6 {[%clk 0:02:58]} 8. O-O-O {[%clk 0:02:40]}  b5 {[%clk 0:02:58]} 9. e5 {[%clk 0:02:36]}  b4 {[%clk 0:02:45]} 10. Nb1 {[%clk 0:02:21]}  dxe5 {[%clk 0:02:37]} 11. dxe5 {[%clk 0:02:20]}  Nh5 {[%clk 0:02:35]} 12. g4 {[%clk 0:02:15]}  Bxe5 {[%clk 0:02:30]} 13. gxh5 {[%clk 0:02:13]}  Qa5 {[%clk 0:02:29]} 14. a3 {[%clk 0:01:48]}  bxa3 {[%clk 0:02:28]} 15. Qxa5 {[%clk 0:01:47]}  axb2+ {[%clk 0:02:05]} 16. Kd2 {[%clk 0:01:46]}  O-O {[%clk 0:02:05]} 17. hxg6 {[%clk 0:01:43]}  fxg6 {[%clk 0:02:06]} 18. f4 {[%clk 0:01:37]}  Bg7 {[%clk 0:02:04]} 19. Ng3 {[%clk 0:01:32]}  Bb7 {[%clk 0:02:02]} 20. Bc4+ {[%clk 0:01:30]}  Kh8 {[%clk 0:02:01]} 21. Rhe1 {[%clk 0:01:28]}  Rad8 {[%clk 0:01:58]} 22. Ke2 {[%clk 0:01:14]}  h6 {[%clk 0:01:51]} 23. Bxe7 {[%clk 0:01:12]}  Rfe8 {[%clk 0:01:34]} 24. Qxd8 {[%clk 0:01:10]} 1-0


[Site "https://www.chess.com"]

[Event "Titled Tuesday Blitz May 2 Late 2023"]
[White "Van Baar, Esper"]
[Black "Manon-og, Ramon Jr."]
[WhiteFideId "1049321"]
[BlackFideId "5200776"]
[WhiteElo "2180"]
[BlackElo "1999"]
[Result "1-0"]
[Round "05"]
[TimeControl "180+2"]
[Date "2023.05.02"]
[WhiteClock "0:01:11"]
[BlackClock "0:00:05"]

1. e4 {[%clk 0:03:00]}  e5 {[%clk 0:02:55]} 2. Nf3 {[%clk 0:03:00]}  Nc6 {[%clk 0:02:53]} 3. Bc4 {[%clk 0:03:00]}  Nf6 {[%clk 0:02:50]} 4. d3 {[%clk 0:02:59]}  h6 {[%clk 0:02:45]} 5. c3 {[%clk 0:02:58]}  g6 {[%clk 0:02:44]} 6. O-O {[%clk 0:02:55]}  Bg7 {[%clk 0:02:42]} 7. Re1 {[%clk 0:02:50]}  d5 {[%clk 0:02:25]} 8. exd5 {[%clk 0:02:49]}  Nxd5 {[%clk 0:02:23]} 9. d4 {[%clk 0:02:23]}  Be6 {[%clk 0:02:01]} 10. Nxe5 {[%clk 0:02:15]}  Nxe5 {[%clk 0:01:58]} 11. dxe5 {[%clk 0:02:16]}  O-O {[%clk 0:01:45]} 12. Nd2 {[%clk 0:02:03]}  Nb6 {[%clk 0:01:29]} 13. Bxe6 {[%clk 0:02:02]}  fxe6 {[%clk 0:01:27]} 14. Nf3 {[%clk 0:01:59]}  Nc4 {[%clk 0:01:14]} 15. Qb3 {[%clk 0:01:53]}  Na5 {[%clk 0:00:57]} 16. Qxe6+ {[%clk 0:01:51]}  Kh8 {[%clk 0:00:51]} 17. Qxg6 {[%clk 0:01:46]}  Qd5 {[%clk 0:00:15]} 18. Bxh6 {[%clk 0:01:40]}  Bxh6 {[%clk 0:00:14]} 19. Qxh6+ {[%clk 0:01:41]}  Kg8 {[%clk 0:00:12]} 20. Rad1 {[%clk 0:01:23]}  Qxa2 {[%clk 0:00:08]} 21. Ng5 {[%clk 0:01:12]}  Qxb2 {[%clk 0:00:05]} 22. Qh7# {[%clk 0:01:11]} 1-0


[Site "https://www.chess.com"]

[Event "Titled Tuesday Blitz May 2 Late 2023"]
[White "Liu, Casper"]
[Black "Fajdetic, Hrvoje"]
[WhiteFideId "1454153"]
[BlackFideId "14501945"]
[WhiteElo "2221"]
[BlackElo "2185"]
[Result "1-0"]
[Round "05"]
[TimeControl "180+2"]
[Date "2023.05.02"]
[WhiteClock "0:01:16"]
[BlackClock "0:00:04"]

1. e4 {[%clk 0:02:56]}  c5 {[%clk 0:02:45]} 2. Nf3 {[%clk 0:02:56]}  a6 {[%clk 0:02:44]} 3. c3 {[%clk 0:02:56]}  d5 {[%clk 0:02:40]} 4. exd5 {[%clk 0:02:57]}  Qxd5 {[%clk 0:02:40]} 5. d4 {[%clk 0:02:57]}  Nf6 {[%clk 0:02:37]} 6. Be2 {[%clk 0:02:57]}  Bg4 {[%clk 0:02:37]} 7. h3 {[%clk 0:02:52]}  Bh5 {[%clk 0:02:37]} 8. c4 {[%clk 0:02:51]}  Qd6 {[%clk 0:02:35]} 9. d5 {[%clk 0:02:49]}  e6 {[%clk 0:02:25]} 10. dxe6 {[%clk 0:02:45]}  Qxd1+ {[%clk 0:02:21]} 11. Bxd1 {[%clk 0:02:44]}  fxe6 {[%clk 0:02:21]} 12. O-O {[%clk 0:02:42]}  Nc6 {[%clk 0:02:00]} 13. Re1 {[%clk 0:02:41]}  O-O-O {[%clk 0:01:53]} 14. Nc3 {[%clk 0:02:41]}  Nd4 {[%clk 0:01:26]} 15. g4 {[%clk 0:02:23]}  Nxf3+ {[%clk 0:01:14]} 16. Bxf3 {[%clk 0:02:23]}  Bf7 {[%clk 0:01:15]} 17. Na4 {[%clk 0:02:15]}  Kc7 {[%clk 0:01:05]} 18. Bg5 {[%clk 0:02:11]}  Bd6 {[%clk 0:01:02]} 19. Bh4 {[%clk 0:02:07]}  b5 {[%clk 0:00:56]} 20. cxb5 {[%clk 0:02:07]}  axb5 {[%clk 0:00:57]} 21. Nc3 {[%clk 0:02:07]}  Kb6 {[%clk 0:00:45]} 22. g5 {[%clk 0:02:05]}  Nd5 {[%clk 0:00:31]} 23. Nxd5+ {[%clk 0:01:57]}  exd5 {[%clk 0:00:30]} 24. g6 {[%clk 0:01:57]}  hxg6 {[%clk 0:00:27]} 25. Bxd8+ {[%clk 0:01:57]}  Rxd8 {[%clk 0:00:28]} 26. Rad1 {[%clk 0:01:54]}  d4 {[%clk 0:00:23]} 27. b3 {[%clk 0:01:54]}  Bf8 {[%clk 0:00:16]} 28. Kg2 {[%clk 0:01:54]}  c4 {[%clk 0:00:15]} 29. bxc4 {[%clk 0:01:53]}  bxc4 {[%clk 0:00:16]} 30. Rb1+ {[%clk 0:01:53]}  Kc5 {[%clk 0:00:13]} 31. Re5+ {[%clk 0:01:53]}  Bd5 {[%clk 0:00:12]} 32. a4 {[%clk 0:01:44]}  Kc6 {[%clk 0:00:08]} 33. Rxd5 {[%clk 0:01:28]}  Rxd5 {[%clk 0:00:09]} 34. a5 {[%clk 0:01:28]}  Bc5 {[%clk 0:00:06]} 35. a6 {[%clk 0:01:20]}  d3 {[%clk 0:00:06]} 36. Bxd5+ {[%clk 0:01:21]}  Kxd5 {[%clk 0:00:07]} 37. Rb5 {[%clk 0:01:17]}  d2 {[%clk 0:00:04]} 38. a7 {[%clk 0:01:16]}  d1=Q {[%clk 0:00:04]} 39. a8=Q+ {[%clk 0:01:17]}  Kd4 {[%clk 0:00:03]} 40. Qd8+ {[%clk 0:01:16]}  Kc3 {[%clk 0:00:04]} 41. Qxd1 {[%clk 0:01:16]} 1-0


[Site "https://www.chess.com"]

[Event "Titled Tuesday Blitz May 2 Late 2023"]
[White "Debray, Christopher"]
[Black "Ismayilova, Khanim"]
[WhiteFideId "630810"]
[BlackFideId "13429019"]
[WhiteElo "2340"]
[BlackElo "1633"]
[Result "1-0"]
[Round "05"]
[TimeControl "180+2"]
[Date "2023.05.02"]
[WhiteClock "0:00:17"]
[BlackClock "0:00:01"]

1. d4 {[%clk 0:02:56]}  d5 {[%clk 0:02:59]} 2. c4 {[%clk 0:02:56]}  e6 {[%clk 0:02:59]} 3. Nc3 {[%clk 0:02:56]}  Nf6 {[%clk 0:02:59]} 4. Nf3 {[%clk 0:02:57]}  Be7 {[%clk 0:02:58]} 5. e3 {[%clk 0:02:57]}  O-O {[%clk 0:02:56]} 6. Bd3 {[%clk 0:02:57]}  b6 {[%clk 0:02:48]} 7. cxd5 {[%clk 0:02:56]}  exd5 {[%clk 0:02:47]} 8. O-O {[%clk 0:02:56]}  c5 {[%clk 0:02:42]} 9. dxc5 {[%clk 0:02:50]}  bxc5 {[%clk 0:02:43]} 10. b3 {[%clk 0:02:49]}  Bb7 {[%clk 0:02:43]} 11. Bb2 {[%clk 0:02:49]}  Nbd7 {[%clk 0:02:40]} 12. Rc1 {[%clk 0:02:46]}  Rc8 {[%clk 0:02:39]} 13. Qe2 {[%clk 0:02:44]}  Nb6 {[%clk 0:02:30]} 14. Rfd1 {[%clk 0:02:42]}  Qc7 {[%clk 0:02:00]} 15. Nb5 {[%clk 0:02:42]}  Qb8 {[%clk 0:01:57]} 16. Be5 {[%clk 0:02:42]}  Qa8 {[%clk 0:01:45]} 17. Nc7 {[%clk 0:02:42]}  Rxc7 {[%clk 0:01:45]} 18. Bxc7 {[%clk 0:02:42]}  Rc8 {[%clk 0:01:46]} 19. Bg3 {[%clk 0:02:28]}  Nh5 {[%clk 0:00:51]} 20. Ba6 {[%clk 0:02:22]}  Nxg3 {[%clk 0:00:50]} 21. hxg3 {[%clk 0:02:23]}  c4 {[%clk 0:00:37]} 22. Bxb7 {[%clk 0:02:22]}  Qxb7 {[%clk 0:00:38]} 23. Nd4 {[%clk 0:02:10]}  Ba3 {[%clk 0:00:34]} 24. Rc2 {[%clk 0:01:53]}  c3 {[%clk 0:00:32]} 25. Nb5 {[%clk 0:01:41]}  Bb4 {[%clk 0:00:31]} 26. a3 {[%clk 0:01:37]}  Be7 {[%clk 0:00:14]} 27. b4 {[%clk 0:01:07]}  Na4 {[%clk 0:00:12]} 28. Nd4 {[%clk 0:00:59]}  Bf6 {[%clk 0:00:08]} 29. Qb5 {[%clk 0:00:49]}  Qxb5 {[%clk 0:00:04]} 30. Nxb5 {[%clk 0:00:49]}  Nb2 {[%clk 0:00:04]} 31. Rxd5 {[%clk 0:00:42]}  Nc4 {[%clk 0:00:02]} 32. Nd6 {[%clk 0:00:33]}  Rd8 {[%clk 0:00:02]} 33. Nxc4 {[%clk 0:00:19]}  Rxd5 {[%clk 0:00:02]} 34. Kf1 {[%clk 0:00:17]}  Kf8 {[%clk 0:00:01]} 35. Ke2 {[%clk 0:00:17]}  Ke7 {[%clk 0:00:01]} 36. e4 {[%clk 0:00:17]} 1-0


[Site "https://www.chess.com"]

[Event "Titled Tuesday Blitz May 2 Late 2023"]
[White "Hirneise, Jens"]
[Black "Kapp, Martin"]
[WhiteFideId "24614734"]
[BlackFideId "24651680"]
[WhiteElo "2345"]
[BlackElo "2177"]
[Result "1-0"]
[Round "05"]
[TimeControl "180+2"]
[Date "2023.05.02"]
[WhiteClock "0:01:11"]
[BlackClock "0:00:13"]

1. c4 {[%clk 0:02:58]}  c6 {[%clk 0:02:59]} 2. Nc3 {[%clk 0:02:57]}  Nf6 {[%clk 0:02:57]} 3. e4 {[%clk 0:02:56]}  d5 {[%clk 0:02:57]} 4. cxd5 {[%clk 0:02:55]}  cxd5 {[%clk 0:02:56]} 5. e5 {[%clk 0:02:56]}  Nfd7 {[%clk 0:02:53]} 6. e6 {[%clk 0:02:51]}  fxe6 {[%clk 0:02:52]} 7. d4 {[%clk 0:02:52]}  Nf6 {[%clk 0:02:50]} 8. Nf3 {[%clk 0:02:46]}  Nc6 {[%clk 0:02:46]} 9. Bd3 {[%clk 0:02:41]}  g6 {[%clk 0:02:41]} 10. O-O {[%clk 0:02:33]}  Qd6 {[%clk 0:02:39]} 11. Nb5 {[%clk 0:02:26]}  Qb8 {[%clk 0:02:38]} 12. Re1 {[%clk 0:02:27]}  a6 {[%clk 0:02:37]} 13. Nc3 {[%clk 0:02:24]}  b5 {[%clk 0:02:31]} 14. g3 {[%clk 0:02:20]}  Bg7 {[%clk 0:02:29]} 15. Bf4 {[%clk 0:02:16]}  Qb6 {[%clk 0:02:30]} 16. a4 {[%clk 0:02:14]}  b4 {[%clk 0:02:28]} 17. a5 {[%clk 0:02:15]}  Nxa5 {[%clk 0:02:18]} 18. Na4 {[%clk 0:02:10]}  Qa7 {[%clk 0:02:02]} 19. Nc5 {[%clk 0:01:59]}  Nc4 {[%clk 0:01:31]} 20. Qa4+ {[%clk 0:01:55]}  Bd7 {[%clk 0:01:16]} 21. Qxb4 {[%clk 0:01:50]}  O-O {[%clk 0:01:07]} 22. Rxa6 {[%clk 0:01:48]}  Qxa6 {[%clk 0:01:00]} 23. Nxa6 {[%clk 0:01:49]}  Rxa6 {[%clk 0:01:00]} 24. b3 {[%clk 0:01:49]}  Rb6 {[%clk 0:00:57]} 25. Qxe7 {[%clk 0:01:42]}  Nb2 {[%clk 0:00:46]} 26. Bb1 {[%clk 0:01:34]}  Rxb3 {[%clk 0:00:44]} 27. Ne5 {[%clk 0:01:32]}  Rb7 {[%clk 0:00:29]} 28. Nxd7 {[%clk 0:01:30]}  Rxd7 {[%clk 0:00:29]} 29. Qxe6+ {[%clk 0:01:30]}  Rdf7 {[%clk 0:00:28]} 30. Bd6 {[%clk 0:01:23]}  Re8 {[%clk 0:00:28]} 31. Qxe8+ {[%clk 0:01:22]}  Nxe8 {[%clk 0:00:28]} 32. Rxe8+ {[%clk 0:01:23]}  Bf8 {[%clk 0:00:29]} 33. Ba2 {[%clk 0:01:18]}  Nc4 {[%clk 0:00:20]} 34. Bxc4 {[%clk 0:01:18]}  dxc4 {[%clk 0:00:21]} 35. Kf1 {[%clk 0:01:17]}  c3 {[%clk 0:00:12]} 36. Rxf8+ {[%clk 0:01:10]}  Rxf8 {[%clk 0:00:11]} 37. Bxf8 {[%clk 0:01:11]}  Kxf8 {[%clk 0:00:11]} 38. Ke2 {[%clk 0:01:11]}  Ke7 {[%clk 0:00:11]} 39. Kd3 {[%clk 0:01:11]}  Kd6 {[%clk 0:00:11]} 40. Kxc3 {[%clk 0:01:11]}  Kd5 {[%clk 0:00:12]} 41. Kd3 {[%clk 0:01:12]}  g5 {[%clk 0:00:12]} 42. g4 {[%clk 0:01:12]}  h6 {[%clk 0:00:11]} 43. h3 {[%clk 0:01:11]}  Kd6 {[%clk 0:00:11]} 44. Ke4 {[%clk 0:01:11]}  Ke6 {[%clk 0:00:12]} 45. d5+ {[%clk 0:01:11]}  Kd6 {[%clk 0:00:11]} 46. Kd4 {[%clk 0:01:12]}  Kd7 {[%clk 0:00:11]} 47. Ke5 {[%clk 0:01:12]}  Ke7 {[%clk 0:00:12]} 48. d6+ {[%clk 0:01:12]}  Kd7 {[%clk 0:00:12]} 49. Kd5 {[%clk 0:01:13]}  Kd8 {[%clk 0:00:12]} 50. Ke6 {[%clk 0:01:14]}  Ke8 {[%clk 0:00:12]} 51. d7+ {[%clk 0:01:12]}  Kd8 {[%clk 0:00:13]} 52. f3 {[%clk 0:01:11]} 1-0


[Site "https://www.chess.com"]

[Event "Titled Tuesday Blitz May 2 Late 2023"]
[White "Golubev, Mikhail"]
[Black "Phillips, Rene"]
[WhiteFideId "14100983"]
[BlackFideId "2056275"]
[WhiteElo "2374"]
[BlackElo "1852"]
[Result "1-0"]
[Round "05"]
[TimeControl "180+2"]
[Date "2023.05.02"]
[WhiteClock "0:00:10"]
[BlackClock "0:00:08"]

1. d4 {[%clk 0:02:53]}  Nc6 {[%clk 0:02:59]} 2. c4 {[%clk 0:02:50]}  e5 {[%clk 0:02:58]} 3. dxe5 {[%clk 0:02:39]}  Nxe5 {[%clk 0:02:56]} 4. e4 {[%clk 0:02:34]}  Bc5 {[%clk 0:02:46]} 5. f4 {[%clk 0:02:16]}  Ng6 {[%clk 0:02:27]} 6. Nc3 {[%clk 0:02:00]}  Bxg1 {[%clk 0:02:23]} 7. Rxg1 {[%clk 0:02:00]}  Qh4+ {[%clk 0:02:24]} 8. g3 {[%clk 0:01:59]}  Qxh2 {[%clk 0:02:23]} 9. Rg2 {[%clk 0:01:57]}  Qh1 {[%clk 0:02:21]} 10. Nd5 {[%clk 0:01:53]}  Kd8 {[%clk 0:02:16]} 11. Qd4 {[%clk 0:01:49]}  f6 {[%clk 0:02:01]} 12. f5 {[%clk 0:01:49]}  Ne5 {[%clk 0:01:52]} 13. Qc3 {[%clk 0:01:08]}  Ne7 {[%clk 0:01:29]} 14. Bf4 {[%clk 0:01:03]}  Nxd5 {[%clk 0:01:15]} 15. cxd5 {[%clk 0:01:02]}  b6 {[%clk 0:01:02]} 16. Bxe5 {[%clk 0:00:38]}  fxe5 {[%clk 0:00:58]} 17. Rc1 {[%clk 0:00:38]}  c6 {[%clk 0:00:49]} 18. dxc6 {[%clk 0:00:35]}  d6 {[%clk 0:00:34]} 19. Qd2 {[%clk 0:00:25]}  Kc7 {[%clk 0:00:31]} 20. Qg5 {[%clk 0:00:23]}  Ba6 {[%clk 0:00:12]} 21. Qe7+ {[%clk 0:00:20]}  Kb8 {[%clk 0:00:09]} 22. Qxd6+ {[%clk 0:00:16]}  Kc8 {[%clk 0:00:08]} 23. Qd7+ {[%clk 0:00:12]}  Kb8 {[%clk 0:00:09]} 24. c7+ {[%clk 0:00:12]}  Kb7 {[%clk 0:00:08]} 25. c8=R# {[%clk 0:00:10]} 1-0


[Site "https://www.chess.com"]

[Event "Titled Tuesday Blitz May 2 Late 2023"]
[White "Cooklev, Steven"]
[Black "Castella Garcia, Fausto"]
[WhiteFideId "2050552"]
[BlackFideId "3501922"]
[WhiteElo "2039"]
[BlackElo "2245"]
[Result "0-1"]
[Round "05"]
[TimeControl "180+2"]
[Date "2023.05.02"]
[WhiteClock "0:00:02"]
[BlackClock "0:00:28"]

1. e4 {[%clk 0:03:00]}  c5 {[%clk 0:03:00]} 2. Nf3 {[%clk 0:03:01]}  d6 {[%clk 0:03:00]} 3. d4 {[%clk 0:03:01]}  cxd4 {[%clk 0:03:01]} 4. Nxd4 {[%clk 0:03:01]}  Nf6 {[%clk 0:03:02]} 5. Nc3 {[%clk 0:03:02]}  g6 {[%clk 0:03:02]} 6. Be3 {[%clk 0:03:01]}  Bg7 {[%clk 0:03:02]} 7. f3 {[%clk 0:02:58]}  O-O {[%clk 0:03:02]} 8. Qd2 {[%clk 0:02:56]}  Nc6 {[%clk 0:03:02]} 9. Bc4 {[%clk 0:02:56]}  Bd7 {[%clk 0:03:01]} 10. Bb3 {[%clk 0:02:53]}  Qa5 {[%clk 0:03:01]} 11. O-O-O {[%clk 0:02:47]}  Rfc8 {[%clk 0:03:01]} 12. Kb1 {[%clk 0:02:47]}  Ne5 {[%clk 0:03:01]} 13. h4 {[%clk 0:02:38]}  b5 {[%clk 0:02:59]} 14. Ncxb5 {[%clk 0:02:29]}  Qxd2 {[%clk 0:02:56]} 15. Rxd2 {[%clk 0:02:23]}  Rab8 {[%clk 0:02:57]} 16. Nxa7 {[%clk 0:01:51]}  Rc7 {[%clk 0:02:52]} 17. a4 {[%clk 0:01:32]}  Rxa7 {[%clk 0:02:44]} 18. Nf5 {[%clk 0:01:23]}  Bxf5 {[%clk 0:02:32]} 19. Bxa7 {[%clk 0:01:22]}  Rb7 {[%clk 0:02:32]} 20. Bd4 {[%clk 0:01:17]}  Bd7 {[%clk 0:02:20]} 21. a5 {[%clk 0:01:16]}  Nc6 {[%clk 0:02:17]} 22. Bc3 {[%clk 0:01:13]}  Ne8 {[%clk 0:02:11]} 23. Bxg7 {[%clk 0:01:08]}  Kxg7 {[%clk 0:02:12]} 24. Bd5 {[%clk 0:01:08]}  Rb5 {[%clk 0:02:04]} 25. a6 {[%clk 0:01:04]}  Ra5 {[%clk 0:02:03]} 26. h5 {[%clk 0:01:00]}  Rxa6 {[%clk 0:02:00]} 27. hxg6 {[%clk 0:00:59]}  hxg6 {[%clk 0:01:58]} 28. g4 {[%clk 0:00:58]}  Nc7 {[%clk 0:01:56]} 29. Bc4 {[%clk 0:00:54]}  Rb6 {[%clk 0:01:39]} 30. Rdh2 {[%clk 0:00:54]}  Kf6 {[%clk 0:01:34]} 31. Rh7 {[%clk 0:00:52]}  Ne5 {[%clk 0:01:31]} 32. Be2 {[%clk 0:00:48]}  g5 {[%clk 0:01:27]} 33. R7h6+ {[%clk 0:00:43]}  Ng6 {[%clk 0:01:26]} 34. b3 {[%clk 0:00:40]}  Ne6 {[%clk 0:01:21]} 35. Bc4 {[%clk 0:00:35]}  Nd4 {[%clk 0:01:19]} 36. Kb2 {[%clk 0:00:32]}  Be6 {[%clk 0:01:09]} 37. Bxe6 {[%clk 0:00:31]}  Kxe6 {[%clk 0:01:07]} 38. Rf1 {[%clk 0:00:26]}  Kd7 {[%clk 0:00:58]} 39. Rh7 {[%clk 0:00:21]}  Ne5 {[%clk 0:00:57]} 40. f4 {[%clk 0:00:20]}  gxf4 {[%clk 0:00:57]} 41. Rxf4 {[%clk 0:00:20]}  Nxb3 {[%clk 0:00:51]} 42. Kc3 {[%clk 0:00:18]}  Nc5 {[%clk 0:00:36]} 43. g5 {[%clk 0:00:18]}  Ne6 {[%clk 0:00:35]} 44. Rf5 {[%clk 0:00:13]}  Rc6+ {[%clk 0:00:35]} 45. Kd2 {[%clk 0:00:11]}  Nd4 {[%clk 0:00:32]} 46. c3 {[%clk 0:00:09]}  Nxf5 {[%clk 0:00:32]} 47. exf5 {[%clk 0:00:10]}  Rc5 {[%clk 0:00:31]} 48. g6 {[%clk 0:00:06]}  fxg6 {[%clk 0:00:31]} 49. f6 {[%clk 0:00:06]}  Nc6 {[%clk 0:00:27]} 50. f7 {[%clk 0:00:03]}  Rf5 {[%clk 0:00:27]} 51. Kd3 {[%clk 0:00:03]}  Ne5+ {[%clk 0:00:27]} 52. Ke4 {[%clk 0:00:02]}  Rxf7 {[%clk 0:00:28]} 0-1


[Site "https://www.chess.com"]

[Event "Titled Tuesday Blitz May 2 Late 2023"]
[White "James, Stuart"]
[Black "Vifleemskaia, Svetlana"]
[WhiteFideId "7400489"]
[BlackFideId "4129490"]
[WhiteElo "1950"]
[BlackElo "1930"]
[Result "1-0"]
[Round "05"]
[TimeControl "180+2"]
[Date "2023.05.02"]
[WhiteClock "0:01:42"]
[BlackClock "0:01:36"]

1. e4 {[%clk 0:02:58]}  e5 {[%clk 0:02:59]} 2. Nf3 {[%clk 0:02:58]}  Nc6 {[%clk 0:02:57]} 3. Bb5 {[%clk 0:02:57]}  a6 {[%clk 0:02:56]} 4. Ba4 {[%clk 0:02:57]}  Nf6 {[%clk 0:02:54]} 5. d3 {[%clk 0:02:58]}  d6 {[%clk 0:02:48]} 6. c4 {[%clk 0:02:57]}  g6 {[%clk 0:02:48]} 7. Nc3 {[%clk 0:02:54]}  Bg7 {[%clk 0:02:49]} 8. Nd5 {[%clk 0:02:52]}  h6 {[%clk 0:02:48]} 9. h3 {[%clk 0:02:49]}  O-O {[%clk 0:02:45]} 10. Be3 {[%clk 0:02:48]}  Rb8 {[%clk 0:02:43]} 11. Qd2 {[%clk 0:02:46]}  Kh7 {[%clk 0:02:42]} 12. Bxc6 {[%clk 0:02:38]}  bxc6 {[%clk 0:02:40]} 13. Nb4 {[%clk 0:02:37]}  Qd7 {[%clk 0:02:08]} 14. Rb1 {[%clk 0:02:11]}  c5 {[%clk 0:02:04]} 15. Nd5 {[%clk 0:02:08]}  Nxd5 {[%clk 0:02:04]} 16. cxd5 {[%clk 0:02:06]}  Qa4 {[%clk 0:02:03]} 17. a3 {[%clk 0:02:05]}  Rxb2 {[%clk 0:01:50]} 18. Rxb2 {[%clk 0:01:59]}  Qxa3 {[%clk 0:01:50]} 19. O-O {[%clk 0:01:56]}  f5 {[%clk 0:01:47]} 20. Qc2 {[%clk 0:01:50]}  Bd7 {[%clk 0:01:43]} 21. Ra2 {[%clk 0:01:46]}  Qb4 {[%clk 0:01:38]} 22. Rb1 {[%clk 0:01:46]}  Ba4 {[%clk 0:01:36]} 23. Rxa4 {[%clk 0:01:42]} 1-0


[Site "https://www.chess.com"]

[Event "Titled Tuesday Blitz May 2 Late 2023"]
[White "Kavinda, Akila"]
[Black "Sailer, Mike"]
[WhiteFideId "9901302"]
[BlackFideId "2012901"]
[WhiteElo "2043"]
[BlackElo "2109"]
[Result "1-0"]
[Round "05"]
[TimeControl "180+2"]
[Date "2023.05.02"]
[WhiteClock "0:00:27"]
[BlackClock "0:00:02"]

1. e4 {[%clk 0:02:58]}  d5 {[%clk 0:02:54]} 2. exd5 {[%clk 0:02:58]}  Qxd5 {[%clk 0:02:53]} 3. Nc3 {[%clk 0:02:59]}  Qd6 {[%clk 0:02:49]} 4. Nf3 {[%clk 0:02:58]}  Nf6 {[%clk 0:02:48]} 5. Nb5 {[%clk 0:02:58]}  Qd8 {[%clk 0:02:45]} 6. d4 {[%clk 0:02:58]}  c6 {[%clk 0:02:45]} 7. Nc3 {[%clk 0:02:58]}  Bg4 {[%clk 0:02:45]} 8. Be3 {[%clk 0:02:52]}  e6 {[%clk 0:02:45]} 9. Be2 {[%clk 0:02:52]}  Bb4 {[%clk 0:02:38]} 10. O-O {[%clk 0:02:52]}  O-O {[%clk 0:02:38]} 11. h3 {[%clk 0:02:40]}  Bh5 {[%clk 0:02:37]} 12. Ne5 {[%clk 0:02:37]}  Bxe2 {[%clk 0:02:36]} 13. Qxe2 {[%clk 0:02:38]}  Nbd7 {[%clk 0:02:36]} 14. f4 {[%clk 0:02:35]}  Bxc3 {[%clk 0:02:29]} 15. bxc3 {[%clk 0:02:35]}  Nxe5 {[%clk 0:02:30]} 16. fxe5 {[%clk 0:02:34]}  Nd5 {[%clk 0:02:30]} 17. Bd2 {[%clk 0:02:32]}  Qh4 {[%clk 0:02:19]} 18. Qd3 {[%clk 0:02:16]}  Rad8 {[%clk 0:01:51]} 19. Rad1 {[%clk 0:02:10]}  b5 {[%clk 0:01:43]} 20. Bc1 {[%clk 0:01:48]}  Nb6 {[%clk 0:01:37]} 21. Ba3 {[%clk 0:01:47]}  Rfe8 {[%clk 0:01:37]} 22. Bc5 {[%clk 0:01:44]}  Nc4 {[%clk 0:01:37]} 23. Qe2 {[%clk 0:01:34]}  a6 {[%clk 0:01:30]} 24. Rd3 {[%clk 0:01:34]}  Rd7 {[%clk 0:01:23]} 25. Rdf3 {[%clk 0:01:30]}  Qh5 {[%clk 0:01:05]} 26. Qf2 {[%clk 0:01:25]}  a5 {[%clk 0:00:48]} 27. Rg3 {[%clk 0:01:13]}  Qh6 {[%clk 0:00:34]} 28. Qf3 {[%clk 0:01:01]}  Rc8 {[%clk 0:00:28]} 29. Qg4 {[%clk 0:00:57]}  Qg6 {[%clk 0:00:22]} 30. Qe2 {[%clk 0:00:56]}  Qh6 {[%clk 0:00:19]} 31. Kh2 {[%clk 0:00:53]}  a4 {[%clk 0:00:07]} 32. Rf6 {[%clk 0:00:52]}  g6 {[%clk 0:00:04]} 33. Rgf3 {[%clk 0:00:43]}  Qd2 {[%clk 0:00:03]} 34. Qf1 {[%clk 0:00:40]}  Rcc7 {[%clk 0:00:03]} 35. Rxe6 {[%clk 0:00:35]}  fxe6 {[%clk 0:00:01]} 36. Rf8+ {[%clk 0:00:35]}  Kg7 {[%clk 0:00:01]} 37. Qf6+ {[%clk 0:00:35]}  Kh6 {[%clk 0:00:02]} 38. Qh4+ {[%clk 0:00:35]}  Kg7 {[%clk 0:00:02]} 39. Rf2 {[%clk 0:00:28]}  Rf7 {[%clk 0:00:02]} 40. Rxd2 {[%clk 0:00:27]} 1-0


[Site "https://www.chess.com"]